bitfinex/quotes_SOLUSD_20250912
["timestamp","ask_amount","ask_price","bid_price","bid_amount"]
[1757681827272,179.43559401,239.55,239.54,13.59559401]
[1757681827474,48.33559401,239.55,239.54,13.59559401]
[1757681827971,60.84559401,239.55,239.54,13.59559401]
[1757681828168,16.16586868,239.56,239.55,1.73345072]
[1757681828773,13.65559401,239.56,239.55,1.73345072]
[1757681829795,15.83436415,239.56,239.55,1.73345072]
[1757681829988,13.65559401,239.56,239.55,1.73345072]
[1757681830294,53.33828405,239.57,239.56,13.59559401]
[1757681830487,18.59828405,239.57,239.56,13.59559401]
[1757681831473,18.59828405,239.57,239.56,33.939747]
[1757681831674,18.59828405,239.57,239.56,13.59559401]
[1757681832199,18.59828405,239.57,239.55,20.90813751]
[1757681832200,51.64920211,239.58,239.57,13.59559401]
[1757681832694,30.10654489,239.54,239.48,0.67]
[1757681832996,16.90423744,239.57,239.55,34.50373152]
[1757681833197,21.39666659,239.58,239.57,13.59559401]
[1757681833407,32.81347601,239.58,239.48,0.67]
[1757681833578,26.16559401,239.59,239.58,24.98102703]
[1757681833779,31.29745384,239.59,239.58,24.98102703]
[1757681834998,13.59559401,239.58,239.48,0.67]
[1757681835197,39.59559401,239.55,239.46,0.67]
[1757681835395,34.7,239.58,239.46,0.67]
[1757681835396,48.29559401,239.58,239.57,5.731422]
[1757681835694,13.59559401,239.58,239.57,5.731422]
[1757681837299,8.59663618,239.59,239.58,4.68200303]
[1757681837677,22.19223019,239.59,239.58,4.68200303]
[1757681837878,22.19223019,239.59,239.58,25.39778162]
[1757681838095,22.19223019,239.59,239.58,4.68200303]
[1757681838286,22.19223019,239.59,239.58,25.39778162]
[1757681838491,13.59559401,239.56,239.55,4.74452456]
[1757681838901,13.59559401,239.56,239.55,25.65266207]
[1757681839098,13.59559401,239.56,239.55,4.74452456]
[1757681840101,8.59663618,239.59,239.56,0.1225472]
[1757681840596,39.59559401,239.57,239.56,0.1225472]
[1757681842202,13.59559401,239.58,239.57,18.68799503]
[1757681842808,13.59559401,239.58,239.52,20.08261455]
[1757681842997,13.59559401,239.56,239.52,20.08261455]
[1757681843192,13.59559401,239.58,239.57,13.59559401]
[1757681844084,13.59559401,239.58,239.52,20.08261455]
[1757681844287,13.59559401,239.64,239.52,20.08261455]
[1757681844482,4.167,239.62,239.52,20.08261455]
[1757681844695,13.59559401,239.64,239.52,20.08261455]
[1757681844886,48.23559401,239.64,239.52,20.08261455]
[1757681845083,48.23559401,239.64,239.46,20.33692607]
[1757681845314,48.23559401,239.64,239.47,0.7]
[1757681845806,17.76259401,239.6,239.48,20.10371914]
[1757681846008,22.97915474,239.6,239.49,0.7]
[1757681846307,12.66546402,239.6,239.56,13.59559401]
[1757681846608,12.66546402,239.6,239.56,33.939747]
[1757681846811,13.59559401,239.59,239.56,33.939747]
[1757681847395,144.69559401,239.57,239.56,33.939747]
[1757681848192,13.59559401,239.59,239.53,20.1619417]
[1757681849304,139.95106945,239.56,239.55,4.74452456]
[1757681849986,142.13020644,239.56,239.55,4.74452456]
[1757681850191,146.29720644,239.56,239.55,25.65266207]
[1757681850696,146.29720644,239.56,239.55,4.74452456]
[1757681851093,129.61126598,239.56,239.55,13.59559401]
[1757681851293,15.774731,239.56,239.55,13.59559401]
[1757681851505,13.59559401,239.56,239.55,14.29559401]
[1757681852292,13.59559401,239.56,239.55,13.59559401]
[1757681853113,4.167,239.59,239.47,0.03]
[1757681853114,13.59559401,239.58,239.57,13.59559401]
[1757681853412,17.76259401,239.58,239.57,13.59559401]
[1757681854106,17.76259401,239.58,239.57,33.88432886]
[1757681854314,17.76259401,239.58,239.57,13.59559401]
[1757681855193,17.76259401,239.59,239.58,0.78511859]
[1757681856711,55.35259401,239.59,239.58,0.78511859]
[1757681856897,17.76259401,239.59,239.58,0.78511859]
[1757681857103,17.76259401,239.59,239.57,13.59559401]
[1757681857419,4.167,239.59,239.57,13.59559401]
[1757681858709,17.76259401,239.58,239.57,13.59559401]
[1757681858913,17.76259401,239.58,239.57,33.88432886]
[1757681859102,34.58095389,239.56,239.55,0.7]
[1757681859303,17.76081284,239.59,239.58,34.3113726]
[1757681859996,13.59559401,239.55,239.49,0.7]
[1757681860198,144.57054836,239.54,239.53,25.17658182]
[1757681861918,144.57054836,239.54,239.53,25.87658182]
[1757681862119,39.59559401,239.52,239.51,6.88906004]
[1757681862317,14.29559401,239.53,239.52,5.01464012]
[1757681862803,14.29559401,239.53,239.52,25.48325708]
[1757681863203,13.59559401,239.53,239.52,25.48325708]
[1757681863800,13.59559401,239.53,239.52,5.01464012]
[1757681864001,13.59559401,239.53,239.52,25.48325708]
[1757681864225,13.59559401,239.54,239.53,13.59559401]
[1757681864522,14.29559401,239.54,239.53,13.59559401]
[1757681866015,14.29559401,239.54,239.52,26.0]
[1757681866296,145.39559401,239.53,239.52,26.0]
[1757681866499,145.39559401,239.53,239.52,26.03]
[1757681867097,145.27055097,239.53,239.52,0.03]
[1757681867315,144.95794337,239.53,239.52,0.03]
[1757681867516,144.77037881,239.53,239.52,0.03]
[1757681867703,144.58281425,239.53,239.52,0.03]
[1757681867905,144.45777121,239.53,239.52,0.03]
[1757681868109,144.33272817,239.53,239.52,0.03]
[1757681868427,144.33272817,239.53,239.45,0.03]
[1757681868428,13.59559401,239.42,239.41,5.7431304]
[1757681869108,13.59559401,239.42,239.41,6.4431304]
[1757681870204,13.59559401,239.48,239.42,9.53657467]
[1757681871325,13.59559401,239.48,239.43,0.7]
[1757681871625,13.59559401,239.47,239.44,0.7]
[1757681873014,13.59559401,239.51,239.45,20.1]
[1757681873931,13.59559401,239.49,239.45,0.7]
[1757681874511,13.59559401,239.49,239.46,0.7]
[1757681875525,13.59559401,239.49,239.44,34.48]
[1757681875526,13.59559401,239.51,239.43,0.68]
[1757681875726,13.59559401,239.51,239.44,34.46]
[1757681876121,13.59559401,239.51,239.43,0.68]
[1757681876326,13.59559401,239.51,239.44,34.46]
[1757681876629,13.59559401,239.49,239.44,34.46]
[1757681876828,13.59559401,239.49,239.45,0.68]
[1757681877514,13.59559401,239.49,239.46,34.44]
[1757681877726,13.59559401,239.49,239.47,0.68]
[1757681878237,13.59559401,239.49,239.48,34.44]
[1757681878438,13.59559401,239.49,239.48,35.12]
[1757681879035,13.59559401,239.49,239.48,0.68]
[1757681879222,13.59559401,239.49,239.48,35.12]
[1757681879421,13.59559401,239.55,239.48,35.12]
[1757681879616,13.59559401,239.55,239.49,0.68]
[1757681879821,13.59559401,239.55,239.46,20.11450622]
[1757681880023,13.59559401,239.53,239.46,20.11450622]
[1757681880215,13.59559401,239.53,239.47,0.68]
[1757681880614,13.59559401,239.53,239.48,20.45489583]
[1757681881027,13.59559401,239.53,239.47,20.74771315]
[1757681881235,13.59559401,239.53,239.44,0.68]
[1757681881422,13.59559401,239.53,239.45,34.42]
[1757681881616,13.59559401,239.53,239.46,0.68]
[1757681883439,13.59559401,239.53,239.45,53.06038364]
[1757681883619,13.59559401,239.53,239.44,0.68]
[1757681884021,13.59559401,239.53,239.45,20.44038364]
[1757681884220,13.59559401,239.53,239.44,0.68]
[1757681884622,13.59559401,239.53,239.46,0.03]
[1757681885030,13.65559401,239.53,239.46,0.03]
[1757681885436,13.59559401,239.51,239.46,0.03]
[1757681886935,13.59559401,239.49,239.46,0.03]
[1757681887139,13.59559401,239.47,239.46,0.03]
[1757681889023,13.59559401,239.47,239.44,0.68]
[1757681889244,13.59559401,239.47,239.45,0.68]
[1757681889623,13.59559401,239.47,239.46,0.68]
[1757681890245,13.59559401,239.47,239.44,0.68]
[1757681890429,13.59559401,239.47,239.43,0.03]
[1757681891030,13.59559401,239.47,239.43,0.71]
[1757681891242,13.59559401,239.47,239.43,0.03]
[1757681891443,13.59559401,239.45,239.43,0.03]
[1757681891650,13.59559401,239.45,239.44,0.68]
[1757681892238,13.59559401,239.45,239.43,0.03]
[1757681892627,13.59559401,239.45,239.43,0.71]
[1757681893928,13.59559401,239.45,239.43,0.03]
[1757681896438,13.59559401,239.45,239.43,0.71]
[1757681897032,13.59559401,239.45,239.43,0.03]
[1757681897232,144.69559401,239.44,239.43,0.03]
[1757681897744,144.69559401,239.44,239.43,0.71]
[1757681898337,144.69559401,239.44,239.43,0.03]
[1757681898737,144.69559401,239.44,239.43,0.71]
[1757681898936,13.59559401,239.44,239.43,0.71]
[1757681899135,20.60397442,239.44,239.43,0.71]
[1757681901343,7.00838041,239.45,239.43,0.71]
[1757681901541,13.59559401,239.46,239.43,0.71]
[1757681901855,13.59559401,239.49,239.43,0.71]
[1757681902438,13.59559401,239.49,239.44,29.08]
[1757681902639,13.59559401,239.49,239.45,0.68]
[1757681903643,0.06,239.46,239.45,0.68]
[1757681905847,0.06,239.46,239.45,34.96]
[1757681906359,0.06,239.46,239.45,0.72]
[1757681906548,0.06,239.46,239.45,35.0]
[1757681907356,0.06,239.46,239.45,0.72]
[1757681907752,0.06,239.46,239.45,35.0]
[1757681910563,0.06,239.46,239.45,34.98]
[1757681911048,0.06,239.46,239.45,0.72]
[1757681911248,0.06,239.46,239.45,34.98]
[1757681912257,0.06,239.46,239.45,34.96]
[1757681914363,0.06,239.46,239.43,20.03]
[1757681914569,0.06,239.46,239.45,0.72]
[1757681915771,0.06,239.46,239.45,34.94]
[1757681919148,0.06,239.46,239.45,34.92]
[1757681919349,13.65559401,239.46,239.45,34.92]
[1757681920064,0.06,239.46,239.43,0.03]
[1757681920241,0.06,239.46,239.44,34.2]
[1757681921564,0.06,239.46,239.44,34.92]
[1757681921765,0.06,239.46,239.45,0.72]
[1757681922069,0.06,239.46,239.44,34.23]
[1757681922754,0.06,239.46,239.44,0.03]
[1757681922954,0.06,239.46,239.45,34.2]
[1757681923171,0.06,239.46,239.45,34.18]
[1757681923372,0.06,239.46,239.45,34.9]
[1757681924459,0.06,239.46,239.45,0.72]
[1757681924666,0.06,239.46,239.45,34.9]
[1757681925459,0.06,239.46,239.45,0.72]
[1757681925660,0.33,239.46,239.44,0.03]
[1757681925868,0.06,239.46,239.44,0.03]
[1757681926054,0.06,239.46,239.45,0.72]
[1757681927255,0.06,239.46,239.44,0.03]
[1757681927462,0.06,239.46,239.45,34.16]
[1757681928350,0.06,239.46,239.31,0.3]
[1757681928553,0.06,239.46,239.32,28.24]
[1757681928761,0.06,239.46,239.33,34.16]
[1757681929268,0.06,239.46,239.31,0.3]
[1757681929472,0.65,239.45,239.31,1e-08]
[1757681929776,0.65,239.45,239.32,27.98]
[1757681930367,0.65,239.45,239.33,34.16]
[1757681930749,0.65,239.45,239.24,13.79559401]
[1757681930750,26.0,239.41,239.24,13.79559401]
[1757681930955,26.0,239.41,239.28,81.1]
[1757681932064,26.0,239.4,239.3,34.14]
[1757681932471,26.0,239.4,239.31,0.72]
[1757681935673,26.0,239.36,239.28,81.1]
[1757681935878,26.0,239.36,239.29,1e-08]
[1757681937771,26.0,239.36,239.3,0.47]
[1757681938680,26.0,239.32,239.29,1e-08]
[1757681941476,4.17868037,239.31,239.28,1e-08]
[1757681941870,30.17902962,239.29,239.28,1e-08]
[1757681944372,4.17902962,239.29,239.28,1e-08]
[1757681944782,26.0,239.27,239.26,1e-08]
[1757681946166,9.40281666,239.29,239.26,1e-08]
[1757681946381,26.0,239.27,239.26,1e-08]
[1757681948496,29.76144104,239.27,239.26,1e-08]
[1757681953895,26.0,239.27,239.26,1e-08]
[1757681954411,28.92556526,239.27,239.26,1e-08]
[1757681959205,29.59556526,239.27,239.26,1e-08]
[1757681961401,36.90947841,239.27,239.24,60.27034355]
[1757681961602,26.0,239.24,239.23,0.03]
[1757681962110,26.67,239.24,239.23,0.03]
[1757681962688,60.67,239.24,239.23,0.03]
[1757681962888,26.67,239.24,239.23,0.03]
[1757681963085,29.59593211,239.24,239.23,0.03]
[1757681963296,63.59593211,239.24,239.23,0.03]
[1757681964088,2.92593211,239.24,239.23,0.03]
[1757681964491,28.92593211,239.24,239.23,0.03]
[1757681968618,28.92593211,239.24,239.23,60.30034355]
[1757681971401,29.59593211,239.24,239.23,37.13915197]
[1757681971600,39.00071391,239.24,239.21,0.13]
[1757681971813,0.67,239.23,239.21,0.13]
[1757681972795,38.33071391,239.24,239.21,0.13]
[1757681972996,39.00071391,239.24,239.21,0.13]
[1757681973624,0.67,239.23,239.21,0.13]
[1757681974820,26.0,239.22,239.21,0.13]
[1757681975033,26.67,239.22,239.21,0.13]
[1757681975498,0.67,239.22,239.21,0.13]
[1757681976191,4.01420198,239.22,239.21,0.13]
[1757681976628,63.95420198,239.22,239.18,0.03]
[1757681976917,72.31470695,239.22,239.18,0.03]
[1757681979406,38.37470695,239.22,239.18,0.03]
[1757681979609,26.0,239.19,239.18,0.03]
[1757681979923,29.34462143,239.19,239.18,0.03]
[1757681980127,30.01462143,239.19,239.18,0.03]
[1757681980801,29.34462143,239.19,239.18,0.03]
[1757681980998,3.34462143,239.19,239.18,0.03]
[1757681981228,29.34462143,239.19,239.18,0.03]
[1757681988247,3.34434179,239.21,239.18,80.93]
[1757681988547,3.34434179,239.21,239.19,33.88]
[1757681989529,11.70323928,239.25,239.19,33.88]
[1757681991417,11.70323928,239.25,239.18,80.93]
[1757681991651,11.70323928,239.25,239.19,33.86]
[1757681992126,11.70323928,239.25,239.19,114.76]
[1757681993122,3.3444816,239.2,239.19,114.76]
[1757681993343,3.3444816,239.2,239.19,80.9]
[1757681993530,3.3444816,239.2,239.19,114.76]
[1757681994738,3.3444816,239.2,239.19,80.9]
[1757681994931,3.3444816,239.2,239.19,114.76]
[1757681995727,3.3444816,239.2,239.19,114.74]
[1757681999847,3.3444816,239.2,239.19,80.9]
[1757682000041,3.3444816,239.2,239.19,114.72]
[1757682000342,3.3444816,239.2,239.19,80.9]
[1757682000536,3.3444816,239.2,239.19,114.72]
[1757682003844,4.0144816,239.2,239.19,80.9]
[1757682004048,4.0144816,239.2,239.18,0.03]
[1757682004238,26.0,239.19,239.18,0.03]
[1757682004648,3.3444816,239.2,239.18,0.03]
[1757682004842,3.3444816,239.2,239.18,33.83]
[1757682005232,4.0144816,239.2,239.18,33.83]
[1757682005565,4.0144816,239.2,239.18,0.03]
[1757682005746,3.3444816,239.2,239.18,33.83]
[1757682007853,3.3444816,239.2,239.18,34.24809515]
[1757682009366,3.3444816,239.2,239.18,0.44809515]
[1757682009568,3.3444816,239.2,239.19,33.78]
[1757682011149,3.40435139,239.21,239.19,33.78]
[1757682011352,3.40435139,239.21,239.19,34.19807767]
[1757682011742,3.40435139,239.21,239.2,33.78]
[1757682013173,3.40435139,239.21,239.2,114.68]
[1757682013869,4.07435139,239.21,239.2,80.9]
[1757682014091,4.07435139,239.21,239.2,114.66]
[1757682014959,3.40435139,239.21,239.2,114.66]
[1757682015168,3.40435139,239.21,239.2,80.9]
[1757682015361,0.06,239.21,239.2,114.66]
[1757682015860,3.40434179,239.21,239.2,114.66]
[1757682016975,0.06,239.21,239.2,114.66]
[1757682017178,0.06,239.21,239.2,279.65559401]
[1757682019887,0.06,239.21,239.2,245.89559401]
[1757682020187,0.06,239.21,239.2,279.63559401]
[1757682021275,0.06,239.21,239.2,279.61559401]
[1757682022281,0.06,239.21,239.2,245.89559401]
[1757682022455,0.06,239.21,239.2,279.61559401]
[1757682024754,0.06,239.21,239.2,279.59559401]
[1757682025273,0.06,239.21,239.2,282.93939199]
[1757682025479,0.06,239.21,239.2,279.59559401]
[1757682026875,0.06,239.21,239.2,309.63939199]
[1757682027281,0.06,239.27,239.26,33.59559401]
[1757682027464,0.06,239.27,239.26,67.71354937]
[1757682027665,0.06,239.27,239.26,34.01354937]
[1757682027859,0.76,239.27,239.26,67.71354937]
[1757682028065,0.76,239.27,239.26,34.01354937]
[1757682028365,0.76,239.27,239.26,67.71354937]
[1757682028564,0.06,239.27,239.26,67.71354937]
[1757682029583,0.06,239.27,239.26,69.38484693]
[1757682030788,0.06,239.27,239.26,247.86484693]
[1757682030965,0.06,239.27,239.26,281.12689157]
[1757682031279,0.06,239.27,239.26,279.45559401]
[1757682031482,0.06,239.27,239.26,245.77559401]
[1757682031680,0.06,239.27,239.26,279.45559401]
[1757682032285,0.06,239.27,239.26,279.43559401]
[1757682032968,0.06,239.27,239.26,245.77559401]
[1757682033285,0.06,239.27,239.26,279.43559401]
[1757682035385,0.06,239.27,239.26,281.10675192]
[1757682035785,0.06,239.27,239.26,247.44675192]
[1757682036091,0.06,239.27,239.26,279.43559401]
[1757682036691,4.10329472,239.29,239.28,33.59559401]
[1757682036987,4.10329472,239.29,239.28,67.65351443]
[1757682038482,4.10329472,239.29,239.28,34.01351443]
[1757682038686,4.10329472,239.29,239.28,67.65351443]
[1757682038888,4.10329472,239.29,239.28,34.01351443]
[1757682039090,4.10329472,239.29,239.28,33.64]
[1757682039597,4.10329472,239.29,239.27,80.72]
[1757682039790,0.7,239.28,239.27,80.72]
[1757682040211,0.7,239.28,239.27,114.34]
[1757682040698,0.7,239.28,239.27,80.72]
[1757682040999,4.04336342,239.28,239.27,114.34]
[1757682041187,4.04336342,239.28,239.22,13.59559401]
[1757682041188,12.40177197,239.28,239.23,20.0]
[1757682041372,0.7,239.27,239.24,33.62]
[1757682041569,0.7,239.27,239.23,100.72]
[1757682041773,0.7,239.26,239.24,33.62]
[1757682042076,0.7,239.25,239.23,100.72]
[1757682042281,0.7,239.24,239.2,0.03]
[1757682042700,0.7,239.24,239.2,33.65]
[1757682042992,0.7,239.23,239.2,33.65]
[1757682043182,0.7,239.22,239.2,33.65]
[1757682043370,0.7,239.21,239.2,33.65]
[1757682044790,0.7,239.21,239.2,0.03]
[1757682044986,38.40519626,239.21,239.18,0.03]
[1757682045174,38.40519626,239.21,239.15,0.03]
[1757682046578,55.12690521,239.21,239.15,0.03]
[1757682047487,55.12690521,239.21,239.13,0.03]
[1757682049799,55.18690521,239.21,239.13,0.03]
[1757682052000,26.0,239.16,239.13,0.03]
[1757682052609,0.7,239.15,239.13,0.03]
[1757682053997,3.34532073,239.14,239.13,0.03]
[1757682054500,4.04532073,239.14,239.13,0.03]
[1757682059205,16.33062895,239.14,239.13,0.03]
[1757682061311,4.04532073,239.14,239.13,0.03]
[1757682062993,3.34514903,239.16,239.13,0.03]
[1757682063505,11.70775147,239.16,239.13,0.03]
[1757682065007,8.36260244,239.16,239.13,0.03]
[1757682065607,9.02260244,239.16,239.13,0.03]
[1757682065792,0.66,239.15,239.13,0.03]
[1757682066292,0.66,239.14,239.13,0.03]
[1757682066492,8.36260244,239.16,239.13,0.03]
[1757682067012,0.66,239.15,239.13,0.03]
[1757682067508,0.66,239.14,239.13,0.03]
[1757682068105,4.06532073,239.14,239.13,0.03]
[1757682069996,30.06532073,239.14,239.13,0.03]
[1757682083532,38.42862256,239.14,239.04,80.9]
[1757682083737,26.0,239.1,239.04,80.9]
[1757682084025,0.66,239.09,239.02,0.2]
[1757682085028,26.0,239.05,239.02,0.2]
[1757682085235,26.72,239.05,239.02,0.2]
[1757682085613,0.72,239.04,239.02,0.2]
[1757682086229,3.42890579,239.03,239.02,0.2]
[1757682087040,6.77576601,239.03,239.02,0.2]
[1757682087822,7.49576601,239.03,239.02,0.2]
[1757682088350,7.49576601,239.03,239.01,1e-08]
[1757682088529,36.88890579,239.02,239.01,1e-08]
[1757682088738,26.0,239.0,238.88,33.46]
[1757682088924,3.42890579,238.93,238.88,33.46]
[1757682089236,3.34840113,238.92,238.88,33.46]
[1757682090227,3.34840113,238.92,238.87,20.29]
[1757682090527,26.0,238.94,238.88,0.29]
[1757682091122,11.71744224,238.96,238.9,20.0]
[1757682091318,29.42890579,238.95,238.9,20.0]
[1757682091642,30.14890579,238.95,238.9,20.0]
[1757682092224,3.34812086,238.94,238.88,20.0]
[1757682092539,15.86732881,238.94,238.88,20.0]
[1757682092741,12.43842302,238.94,238.88,20.0]
[1757682092939,15.86732881,238.94,238.88,20.0]
[1757682093335,0.72,238.93,238.88,20.0]
[1757682093534,15.14732881,238.94,238.88,20.0]
[1757682093925,11.71842302,238.94,238.88,20.0]
[1757682094145,12.43842302,238.94,238.88,20.0]
[1757682094322,15.86732881,238.94,238.88,20.0]
[1757682096025,3.42890579,238.92,238.86,20.0]
[1757682096652,4.14890579,238.92,238.86,20.0]
[1757682097027,30.14890579,238.92,238.86,20.0]
[1757682097730,33.49730692,238.92,238.86,20.0]
[1757682098043,33.49730692,238.92,238.84,20.0]
[1757682098625,66.93730692,238.92,238.84,20.0]
[1757682099044,4.06840113,238.92,238.84,20.0]
[1757682099256,29.34840113,238.92,238.86,0.29]
[1757682100734,29.34840113,238.92,238.84,20.0]
[1757682101040,30.06840113,238.92,238.84,20.0]
[1757682101238,29.34840113,238.92,238.85,13.59559401]
[1757682101440,11.71707542,238.97,238.91,0.39]
[1757682102459,3.34770054,238.97,238.91,20.39]
[1757682102640,3.34770054,238.97,238.92,0.29]
[1757682103248,3.34770054,238.97,238.93,0.29]
[1757682104130,0.06,238.96,238.93,0.29]
[1757682104348,0.06,238.96,238.94,0.29]
[1757682104734,0.06,238.96,238.95,14.0140916]
[1757682104943,0.06,238.96,238.95,14.3040916]
[1757682107460,0.06,238.96,238.95,14.72258919]
[1757682108957,0.06,238.96,238.95,16.39563435]
[1757682110059,0.06,238.96,238.95,228.69563435]
[1757682110245,0.06,238.96,238.95,228.27713676]
[1757682110633,0.06,238.99,238.98,59.59559401]
[1757682110859,0.06,238.99,238.98,186.78403906]
[1757682111169,0.06,238.99,238.98,157.34439906]
[1757682111356,0.06,238.99,238.98,192.41695451]
[1757682112443,0.06,238.99,238.98,192.83539956]
[1757682116883,4.18197834,239.13,239.1,20.0]
[1757682117087,4.18197834,239.13,239.11,33.79821755]
[1757682117275,0.71,239.12,239.11,33.79821755]
[1757682117653,0.71,239.12,239.11,128.11381156]
[1757682117858,0.06,239.14,239.13,20.0]
[1757682117859,0.77,239.14,239.13,20.0]
[1757682118077,0.06,239.14,239.13,53.77818257]
[1757682118784,0.77,239.14,239.13,53.77818257]
[1757682120386,0.77,239.14,239.13,33.77818257]
[1757682120562,0.06,239.14,239.13,67.37377658]
[1757682122058,0.77,239.14,239.13,34.01377658]
[1757682122255,0.77,239.14,239.13,20.41818257]
[1757682122471,0.77,239.14,239.13,53.75818257]
[1757682122672,0.77,239.14,239.13,134.47818257]
[1757682122986,0.77,239.14,239.13,134.06]
[1757682124487,0.06,239.14,239.13,147.65559401]
[1757682126183,0.06,239.14,239.13,147.94559401]
[1757682126365,0.06,239.14,239.13,147.65559401]
[1757682126888,0.06,239.14,239.13,147.94559401]
[1757682127193,0.06,239.14,239.13,279.34559401]
[1757682127363,0.06,239.14,239.13,67.22559401]
[1757682127686,0.06,239.14,239.13,67.64377658]
[1757682127883,0.06,239.14,239.13,148.36377658]
[1757682128083,0.06,239.14,239.13,147.94559401]
[1757682128389,0.06,239.14,239.13,148.36377658]
[1757682129557,0.06,239.14,239.13,160.89377658]
[1757682131376,0.06,239.14,239.13,127.13559401]
[1757682131571,0.06,239.14,239.13,147.61559401]
[1757682132189,0.06,239.14,239.13,147.90559401]
[1757682132765,0.06,239.14,239.13,147.61559401]
[1757682134171,0.06,239.14,239.13,160.85377658]
[1757682134475,0.06,239.21,239.2,114.03559401]
[1757682134673,0.06,239.21,239.2,147.33559401]
[1757682134871,0.77,239.21,239.2,147.33559401]
[1757682135792,0.06,239.21,239.2,147.33559401]
[1757682135998,0.06,239.21,239.2,304.73559401]
[1757682136596,0.06,239.21,239.2,278.71559401]
[1757682136892,0.06,239.21,239.2,259.63682174]
[1757682138402,0.06,239.21,239.2,291.24559401]
[1757682140600,0.77,239.24,239.23,46.0]
[1757682140901,0.06,239.24,239.23,79.69800777]
[1757682141400,0.77,239.24,239.23,79.69800777]
[1757682141897,0.06,239.24,239.23,93.29360178]
[1757682142084,0.06,239.24,239.23,237.09559401]
[1757682142893,0.06,239.24,239.23,236.78559401]
[1757682144897,0.77,239.24,239.23,203.52559401]
[1757682145078,0.77,239.24,239.23,236.78559401]
[1757682145574,0.77,239.24,239.23,236.76559401]
[1757682146183,0.77,239.24,239.23,164.99559401]
[1757682146503,0.06,239.26,239.25,33.59559401]
[1757682146802,0.06,239.26,239.25,67.25356684]
[1757682150597,0.73,239.26,239.25,67.25356684]
[1757682150992,0.06,239.26,239.25,67.25356684]
[1757682151383,0.73,239.26,239.25,67.25356684]
[1757682151696,0.16,239.29,239.28,72.12559401]
[1757682151886,0.16,239.29,239.28,72.54351443]
[1757682152093,0.16,239.29,239.28,106.42351443]
[1757682152304,0.16,239.29,239.28,106.00559401]
[1757682152493,0.16,239.29,239.28,107.67612378]
[1757682153717,0.06,239.3,239.29,26.12559401]
[1757682153917,0.06,239.3,239.29,27.20349697]
[1757682154089,0.06,239.3,239.29,60.42349697]
[1757682154414,0.06,239.3,239.29,62.09353851]
[1757682155496,0.1,239.39,239.37,33.59559401]
[1757682155702,0.1,239.39,239.37,79.7633573]
[1757682155907,0.1,239.39,239.37,80.4233573]
[1757682156299,0.1,239.39,239.37,82.09318969]
[1757682156906,0.1,239.39,239.37,161.70318969]
[1757682157116,0.1,239.39,239.37,161.2854264]
[1757682157304,0.1,239.39,239.37,161.2654264]
[1757682158405,0.1,239.39,239.38,26.12559401]
[1757682158708,0.1,239.39,239.38,27.20333985]
[1757682158909,0.1,239.39,239.38,106.81333985]
[1757682159203,0.1,239.39,239.38,108.06514761]
[1757682160998,0.1,239.39,239.38,60.97514761]
[1757682161203,0.1,239.39,239.38,61.39289345]
[1757682162002,0.1,239.39,239.38,28.21289345]
[1757682162197,0.1,239.39,239.38,61.39289345]
[1757682162689,0.1,239.39,239.38,28.21289345]
[1757682162890,0.1,239.39,239.38,61.39289345]
[1757682164008,0.77,239.39,239.38,61.39289345]
[1757682164217,0.77,239.39,239.38,28.21289345]
[1757682164405,0.77,239.39,239.38,61.39289345]
[1757682164720,0.1,239.39,239.38,61.39289345]
[1757682165906,0.1,239.39,239.38,142.95289345]